bitfinex/quotes_SOLUSD_20250731
["timestamp","ask_amount","ask_price","bid_price","bid_amount"]
[1753999474805,4.5254653,173.85,173.81,13.42926008]
[1753999475006,3.8254653,173.85,173.81,13.42926008]
[1753999476188,3.8254653,173.85,173.82,13.42926008]
[1753999476398,0.03,173.85,173.82,13.42926008]
[1753999476599,26.03,173.85,173.84,13.42926008]
[1753999476797,26.03,173.85,173.84,14.14926008]
[1753999477302,0.03,173.85,173.84,14.14926008]
[1753999478590,0.03,173.85,173.84,14.72450168]
[1753999479200,0.03,173.87,173.84,37.26160166]
[1753999479407,0.03,173.87,173.86,26.85852016]
[1753999479601,0.03,173.91,173.87,16.78468397]
[1753999479910,0.03,173.91,173.9,13.42926008]
[1753999480429,0.03,173.91,173.9,14.7243032]
[1753999481730,0.03,173.91,173.9,20.47473448]
[1753999481909,0.03,173.91,173.9,37.25941845]
[1753999483813,0.03,173.91,173.9,31.50898717]
[1753999484010,0.03,173.91,173.9,14.7243032]
[1753999484222,0.03,173.91,173.9,58.1643032]
[1753999484904,0.03,173.91,173.9,14.14926008]
[1753999485103,0.03,173.91,173.9,57.58926008]
[1753999485411,0.03,173.91,173.9,63.91473448]
[1753999485609,0.03,173.93,173.9,63.91473448]
[1753999485610,0.03,173.93,173.91,16.78468397]
[1753999485809,0.03,173.93,173.92,14.00423708]
[1753999486019,0.03,173.93,173.92,31.50892105]
[1753999487119,0.03,173.93,173.92,37.25869105]
[1753999487433,0.03,173.93,173.92,74.92892105]
[1753999488034,0.03,173.93,173.92,14.14926008]
[1753999488229,0.03,173.93,173.92,63.29903008]
[1753999488616,0.03,173.93,173.92,57.54926008]
[1753999489140,0.03,173.93,173.92,56.82926008]
[1753999489448,0.03,173.93,173.88,56.21394405]
[1753999489449,0.03,173.93,173.91,13.42926008]
[1753999489621,0.73,173.93,173.91,13.42926008]
[1753999489944,0.73,173.93,173.9,56.82926008]
[1753999490241,0.73,173.93,173.88,43.4]
[1753999490242,14.12926008,173.92,173.88,43.4]
[1753999490449,0.03,173.93,173.88,44.12]
[1753999490635,0.03,173.93,173.89,13.42926008]
[1753999490949,0.7,173.92,173.88,52.14433777]
[1753999491245,8.74433777,173.9,173.85,8.74433777]
[1753999491460,26.7,173.9,173.86,8.74433777]
[1753999491622,26.7,173.9,173.85,43.4]
[1753999491623,26.7,173.9,173.87,8.74433777]
[1753999491817,26.7,173.9,173.88,8.74433777]
[1753999492249,14.52404736,173.93,173.89,8.74433777]
[1753999492250,0.03,173.93,173.89,8.74433777]
[1753999492439,26.0,173.92,173.9,8.74433777]
[1753999492741,26.7,173.92,173.9,8.74433777]
[1753999492945,26.7,173.92,173.9,13.39616178]
[1753999493144,26.0,173.92,173.86,0.72]
[1753999493329,26.0,173.92,173.9,13.39616178]
[1753999493530,26.03,173.93,173.9,13.39616178]
[1753999493722,0.03,173.93,173.92,13.39616178]
[1753999493927,0.03,173.93,173.89,43.4]
[1753999494121,0.03,173.93,173.92,13.39616178]
[1753999494321,0.03,173.93,173.9,0.72]
[1753999494533,0.03,173.93,173.92,13.39616178]
[1753999494737,0.03,173.93,173.9,0.72]
[1753999494923,0.03,173.93,173.92,13.39616178]
[1753999496131,0.03,173.93,173.91,13.39616178]
[1753999496338,0.7,173.92,173.9,43.38]
[1753999496635,0.7,173.92,173.9,56.77616178]
[1753999496831,0.7,173.92,173.9,13.39616178]
[1753999497142,0.03,173.93,173.91,13.39616178]
[1753999497949,0.03,173.93,173.91,13.45616178]
[1753999499630,0.03,173.93,173.92,13.39616178]
[1753999499833,0.03,173.93,173.92,14.11616178]
[1753999501850,0.03,173.93,173.92,57.49616178]
[1753999502638,0.03,173.93,173.91,0.06]
[1753999502858,0.7,173.92,173.91,0.06]
[1753999503166,40.09616178,173.92,173.91,0.06]
[1753999504048,62.63061575,173.92,173.91,0.06]
[1753999504636,16.78468397,173.91,173.89,0.06]
[1753999504842,16.78468397,173.91,173.78,0.06]
[1753999504843,16.78468397,173.86,173.78,0.06]
[1753999505047,13.39616178,173.82,173.78,0.06]
[1753999505476,26.0,173.83,173.8,13.39616178]
[1753999505776,26.0,173.82,173.78,13.45616178]
[1753999506260,26.66,173.82,173.78,0.06]
[1753999506843,26.66,173.82,173.78,13.45616178]
[1753999507071,26.0,173.83,173.78,13.45616178]
[1753999507256,39.39616178,173.83,173.78,14.11616178]
[1753999507472,40.05616178,173.83,173.78,14.11616178]
[1753999507802,13.39616178,173.82,173.78,0.06]
[1753999508071,13.39616178,173.81,173.78,0.06]
[1753999508240,39.39616178,173.83,173.78,14.11616178]
[1753999508637,40.05616178,173.83,173.78,14.11616178]
[1753999509057,26.66,173.83,173.79,13.39616178]
[1753999509373,26.0,173.83,173.78,0.06]
[1753999509660,26.0,173.83,173.8,13.39616178]
[1753999509966,0.66,173.82,173.78,13.45616178]
[1753999510356,39.39616178,173.79,173.78,0.06]
[1753999510549,40.05616178,173.79,173.78,0.06]
[1753999511280,61.06386765,173.79,173.78,0.06]
[1753999511564,64.86450864,173.79,173.78,0.06]
[1753999511764,70.61857964,173.79,173.78,1e-08]
[1753999512149,75.36938088,173.79,173.78,1e-08]
[1753999512349,80.02433621,173.79,173.78,1e-08]
[1753999512762,96.3680333,173.79,173.73,0.1]
[1753999512969,13.39616178,173.74,173.73,0.1]
[1753999513173,60.55680277,173.74,173.73,0.1]
[1753999513348,61.21680277,173.74,173.73,0.1]
[1753999513555,78.00148674,173.74,173.73,0.1]
[1753999513756,83.75721368,173.74,173.73,0.1]
[1753999514978,83.75721368,173.74,173.67,0.1]
[1753999514979,42.78468397,173.7,173.67,0.1]
[1753999515154,51.55415668,173.68,173.67,0.1]
[1753999515658,52.21415668,173.68,173.67,0.1]
[1753999516067,26.0,173.68,173.67,0.1]
[1753999516368,52.21415668,173.68,173.67,0.1]
[1753999516571,51.55415668,173.68,173.67,0.1]
[1753999516746,0.66,173.71,173.67,0.76]
[1753999516747,43.38,173.71,173.67,0.76]
[1753999516948,8.76947271,173.68,173.67,0.1]
[1753999517147,51.55415668,173.68,173.67,0.1]
[1753999517365,26.21415668,173.68,173.67,0.1]
[1753999518261,31.97187201,173.68,173.67,0.1]
[1753999518783,16.78468397,173.68,173.67,0.1]
[1753999519648,26.0,173.69,173.67,9.52947271]
[1753999519970,8.76947271,173.72,173.67,9.52947271]
[1753999520164,16.78468397,173.71,173.68,0.66]
[1753999520750,16.78468397,173.75,173.69,0.66]
[1753999520998,25.55415668,173.75,173.7,8.76947271]
[1753999521149,25.55415668,173.75,173.69,0.66]
[1753999521150,26.0,173.72,173.69,9.42947271]
[1753999521773,26.0,173.72,173.7,8.76947271]
[1753999521977,43.38,173.75,173.71,9.42947271]
[1753999522271,16.78468397,173.77,173.74,8.76947271]
[1753999522469,26.0,173.75,173.74,8.76947271]
[1753999523987,16.78468397,173.74,173.67,0.1]
[1753999524149,8.76947271,173.7,173.67,0.1]
[1753999524862,26.0,173.71,173.69,8.76947271]
[1753999525067,68.93415668,173.74,173.69,9.42947271]
[1753999525276,60.16468397,173.74,173.69,9.42947271]
[1753999525476,8.76947271,173.72,173.67,8.86947271]
[1753999525887,8.76947271,173.73,173.68,9.42947271]
[1753999526085,26.0,173.75,173.67,0.1]
[1753999526086,26.0,173.75,173.72,8.76947271]
[1753999526289,0.66,173.81,173.74,8.76947271]
[1753999526463,26.0,173.78,173.76,8.76947271]
[1753999526782,43.36,173.81,173.77,8.76947271]
[1753999526986,69.36,173.81,173.77,8.76947271]
[1753999527184,8.769472,173.82,173.8,8.76947271]
[1753999527584,26.0,173.82,173.8,8.76947271]
[1753999528394,43.36,173.85,173.81,8.76947271]
[1753999528701,14.37639167,173.9,173.84,8.76947271]
[1753999528702,2.93674212,173.9,173.84,8.76947271]
[1753999528870,17.293558,173.9,173.87,13.40122796]
[1753999529067,0.66,173.91,173.87,13.40122796]
[1753999529405,26.0,173.89,173.87,13.40122796]
[1753999529768,26.0,173.89,173.84,0.66]
[1753999529769,26.0,173.88,173.84,0.66]
[1753999529969,26.0,173.88,173.85,13.40122796]
[1753999531700,39.40122796,173.86,173.72,24.39051244]
[1753999531868,26.0,173.86,173.82,13.40122796]
[1753999532074,40.06122796,173.86,173.81,13.40122796]
[1753999532374,26.0,173.86,173.82,13.40122796]
[1753999533203,26.0,173.86,173.82,14.06122796]
[1753999533570,26.0,173.86,173.82,13.40122796]
[1753999534280,13.40122796,173.84,173.75,0.68]
[1753999534500,39.40122796,173.82,173.75,0.68]
[1753999534666,16.78468397,173.84,173.76,13.40122796]
[1753999534667,26.0,173.8,173.76,13.40122796]
[1753999534869,43.34,173.83,173.79,13.40122796]
[1753999535081,26.0,173.85,173.81,13.40122796]
[1753999535280,26.0,173.85,173.82,13.40122796]
[1753999536297,40.06122796,173.85,173.8,13.40122796]
[1753999536527,40.06122796,173.85,173.8,14.08122796]
[1753999536798,40.06122796,173.85,173.81,13.40122796]
[1753999536799,26.0,173.85,173.81,13.40122796]
[1753999537999,26.0,173.85,173.82,13.40122796]
[1753999538495,26.0,173.85,173.81,13.40122796]
[1753999538688,40.06122796,173.85,173.8,14.08122796]
[1753999538892,40.06122796,173.85,173.8,13.40122796]
[1753999539195,30.84591193,173.84,173.79,13.40122796]
[1753999539396,30.84591193,173.84,173.8,13.40122796]
[1753999539588,30.84591193,173.84,173.79,13.40122796]
[1753999539790,26.0,173.85,173.81,13.40122796]
[1753999539986,26.0,173.85,173.82,13.40122796]
[1753999541111,26.0,173.85,173.81,13.40122796]
[1753999541814,26.0,173.85,173.82,13.40122796]
[1753999542011,26.0,173.85,173.81,13.40122796]
[1753999542901,26.0,173.85,173.82,13.40122796]
[1753999543095,0.03,173.86,173.84,13.40122796]
[1753999543311,0.03,173.86,173.85,13.40122796]
[1753999543682,0.03,173.86,173.85,14.08122796]
[1753999544985,0.03,173.86,173.85,19.83331309]
[1753999545419,0.03,173.86,173.85,14.08122796]
[1753999546118,0.03,173.86,173.85,19.83331309]
[1753999548403,0.03,173.86,173.85,36.61799706]
[1753999548606,0.03,173.86,173.85,37.19320557]
[1753999548931,0.03,173.86,173.85,32.53202104]
[1753999549229,0.03,173.86,173.85,27.25520851]
[1753999549429,0.03,173.86,173.85,35.42004343]
[1753999551004,0.03,173.93,173.85,58.53202104]
[1753999551303,0.03,173.93,173.92,8.74004343]
[1753999551502,0.03,173.93,173.92,9.31502043]
[1753999551826,0.03,173.93,173.92,9.99502043]
[1753999552496,0.03,173.93,173.92,53.27502043]
[1753999553497,0.03,173.93,173.92,9.99502043]
[1753999553822,0.03,173.93,173.92,52.02004343]
[1753999555920,0.03,173.93,173.92,52.00004343]
[1753999556428,0.03,173.93,173.9,1.25504312]
[1753999556633,0.03,173.93,173.91,43.26]
[1753999556844,0.03,173.93,173.92,8.74004343]
[1753999559060,0.69,173.93,173.87,0.57514234]
[1753999559232,0.69,173.93,173.89,8.74004343]
[1753999559634,0.66,173.92,173.89,8.74004343]
[1753999559953,0.03,173.93,173.91,8.74004343]
[1753999560155,0.03,173.93,173.92,8.74004343]
[1753999560327,0.03,173.93,173.92,9.99502043]
[1753999560835,0.03,173.93,173.92,9.31502043]
[1753999561254,0.03,173.93,173.92,9.99502043]
[1753999563248,0.03,173.93,173.92,9.31502043]
[1753999563456,0.03,173.93,173.92,0.574977]
[1753999563648,0.69,173.93,173.89,26.0]
[1753999563955,0.69,173.93,173.87,1.25514234]
[1753999563956,0.69,173.93,173.92,8.74004343]
[1753999565038,0.69,173.93,173.91,8.74004343]
[1753999565868,0.69,173.93,173.84,0.72]
[1753999565869,0.7,173.92,173.84,0.72]
[1753999566163,8.74004343,173.91,173.86,8.74004343]
[1753999566363,0.7,173.9,173.86,51.96004343]
[1753999566541,8.74004343,173.91,173.86,51.96004343]
[1753999566746,8.74004343,173.92,173.87,8.74004343]
[1753999567071,0.7,173.9,173.86,51.96004343]
[1753999567369,0.7,173.89,173.86,51.96004343]
[1753999567663,0.7,173.89,173.85,8.74004343]
[1753999567870,0.7,173.89,173.81,0.57534088]
[1753999567871,8.74004343,173.87,173.81,8.74004343]
[1753999568040,8.74004343,173.85,173.8,8.74004343]
[1753999568366,9.44004343,173.84,173.79,8.74004343]
[1753999568534,8.74004343,173.84,173.79,8.74004343]
[1753999568733,0.7,173.83,173.79,8.74004343]
[1753999569157,16.78468397,173.88,173.78,43.22]
[1753999569158,9.44004343,173.82,173.78,43.22]
[1753999569342,8.74004343,173.82,173.78,43.22]
[1753999569653,8.74004343,173.8,173.78,43.22]
[1753999569857,8.74004343,173.8,173.75,8.74004343]
[1753999569858,8.74004343,173.8,173.75,51.96004343]
[1753999570066,0.7,173.79,173.75,51.96004343]
[1753999570269,8.74004343,173.81,173.75,51.96004343]
[1753999570463,9.44004343,173.81,173.75,51.96004343]
[1753999570839,8.74004343,173.79,173.74,8.74004343]
[1753999571059,0.7,173.78,173.74,8.74004343]
[1753999571859,9.44004343,173.77,173.73,0.06]
[1753999572063,8.74004343,173.78,173.73,52.74004343]
[1753999572432,9.44004343,173.78,173.73,52.74004343]
[1753999572633,9.44004343,173.78,173.73,52.02004343]
[1753999573261,52.2247274,173.82,173.76,8.74004343]
[1753999573464,3.8095358,173.81,173.78,8.74004343]
[1753999573758,3.80986839,173.82,173.78,9.46004343]
[1753999573936,29.80986839,173.82,173.78,9.46004343]
[1753999574143,0.7,173.88,173.81,8.74004343]
[1753999574343,26.0,173.87,173.84,8.74004343]
[1753999574759,3.81069698,173.86,173.83,8.74004343]
[1753999574964,26.0,173.87,173.84,8.74004343]
[1753999575745,0.7,173.89,173.84,8.74004343]
[1753999575947,3.81087347,173.89,173.85,0.72]
[1753999576166,5.74983164,173.92,173.87,8.74004343]
[1753999576167,0.7,173.91,173.87,8.74004343]
[1753999576459,0.7,173.9,173.86,8.74004343]
[1753999576662,4.51087347,173.9,173.86,8.74004343]
[1753999577164,3.81087347,173.9,173.87,8.74004343]
[1753999577352,3.81087347,173.91,173.88,8.74004343]
[1753999577669,4.51087347,173.92,173.88,8.74004343]
[1753999578266,3.81087347,173.92,173.89,8.74004343]
[1753999578560,3.81087347,173.92,173.83,6.32788109]
[1753999578561,3.81087347,173.92,173.9,8.74004343]
[1753999578953,0.03,173.93,173.9,8.74004343]
[1753999579555,0.03,173.93,173.89,8.74004343]
[1753999580360,8.74004343,173.9,173.83,0.72]
[1753999580667,9.44004343,173.9,173.85,8.74004343]
[1753999580868,0.7,173.89,173.83,9.46004343]
[1753999581056,8.74004343,173.87,173.82,8.74004343]
[1753999581239,0.7,173.86,173.81,43.18]
[1753999581440,9.44004343,173.86,173.81,52.64004343]
[1753999581942,8.74004343,173.85,173.81,43.18]
[1753999582256,8.74004343,173.82,173.75,9.46004343]
[1753999582455,8.74004343,173.78,173.74,43.18]
[1753999583171,9.44004343,173.78,173.74,43.18]
[1753999583350,9.44004343,173.78,173.73,8.80004343]
[1753999583556,8.74004343,173.74,173.73,0.06]
[1753999583750,25.5247274,173.74,173.73,0.06]
[1753999583946,31.98045434,173.74,173.73,0.06]
[1753999584874,36.67490794,173.74,173.73,0.06]
[1753999585076,30.919181,173.74,173.73,0.06]
[1753999585368,40.13449703,173.74,173.73,0.06]
[1753999585573,39.43449703,173.74,173.73,0.06]
[1753999585748,26.0,173.74,173.73,0.06]
[1753999585950,39.43449703,173.74,173.73,0.06]
[1753999586151,26.0,173.74,173.73,0.06]
[1753999586949,43.18,173.76,173.73,0.06]
[1753999587276,30.919181,173.77,173.73,0.06]
[1753999587480,14.13449703,173.76,173.73,0.06]
[1753999587657,13.43449703,173.76,173.73,0.06]
[1753999588872,43.18,173.8,173.75,13.43449703]
[1753999589090,82.61449703,173.8,173.75,14.15449703]
[1753999589387,43.18,173.8,173.76,13.43449703]
[1753999589682,56.61449703,173.8,173.73,0.06]
[1753999589865,13.43449703,173.78,173.73,13.49449703]
[1753999590061,14.13449703,173.79,173.74,14.15449703]
[1753999590278,14.13449703,173.79,173.74,13.43449703]
[1753999590458,14.13449703,173.78,173.73,0.06]
[1753999590773,13.43449703,173.76,173.73,0.06]
[1753999591157,30.919181,173.77,173.73,0.06]
[1753999591553,13.43449703,173.79,173.74,13.43449703]
[1753999591878,13.43449703,173.79,173.74,14.15449703]
[1753999592169,13.43449703,173.77,173.73,0.06]
[1753999592373,13.43449703,173.74,173.73,0.06]
[1753999592759,16.78468397,173.75,173.73,0.06]
[1753999592965,39.43449703,173.74,173.73,0.06]
[1753999593496,56.919181,173.74,173.73,0.06]
[1753999594479,42.78468397,173.74,173.73,0.06]
[1753999594685,56.219181,173.74,173.73,0.06]
[1753999594889,26.0,173.74,173.73,0.06]
[1753999595060,8.06213406,173.78,173.73,0.06]
[1753999595061,2.307537,173.78,173.73,14.20449703]
[1753999595392,14.12449703,173.78,173.73,14.20449703]
[1753999595764,14.12449703,173.78,173.73,0.77]
[1753999595959,30.219181,173.77,173.73,0.06]
[1753999596168,17.47468397,173.77,173.73,0.06]
[1753999596375,16.78468397,173.78,173.74,14.14449703]
[1753999596865,13.43449703,173.75,173.73,0.06]
[1753999597181,13.43449703,173.74,173.73,0.06]
[1753999597487,56.909181,173.74,173.73,0.06]
[1753999598166,62.66490794,173.74,173.73,0.06]
[1753999598671,36.66490794,173.74,173.73,0.06]
[1753999599091,36.66490794,173.74,173.71,0.06]
[1753999599264,13.43449703,173.68,173.67,0.1]
[1753999599466,16.78468397,173.67,173.65,0.06]
[1753999599678,13.43449703,173.66,173.65,0.06]
[1753999599868,14.12449703,173.66,173.65,0.06]
[1753999600271,36.66755944,173.66,173.65,0.06]
[1753999600787,41.33575596,173.66,173.65,0.06]
[1753999601693,44.33687025,173.66,173.65,0.06]
[1753999602196,44.33687025,173.66,173.65,1e-08]
[1753999602197,57.77136728,173.66,173.65,1e-08]
[1753999602500,42.78468397,173.63,173.62,0.06]
[1753999602674,103.15379216,173.63,173.62,0.06]
[1753999602874,103.84379216,173.63,173.62,1e-08]
[1753999603768,106.15372816,173.63,173.62,1e-08]
[1753999604495,106.15372816,173.63,173.56,0.06]
[1753999604496,16.78468397,173.58,173.56,0.06]
[1753999604792,103.15379216,173.57,173.56,1e-08]
[1753999604992,26.0,173.49,173.45,0.71]
[1753999605500,13.43449703,173.48,173.46,0.71]
[1753999605677,13.43449703,173.48,173.47,0.71]
[1753999605868,39.43449703,173.49,173.47,0.71]
[1753999606074,26.0,173.52,173.48,13.43449703]
[1753999606286,26.0,173.52,173.49,0.71]
[1753999606488,26.0,173.52,173.5,0.71]
[1753999606687,16.78468397,173.58,173.51,14.14449703]
[1753999606891,73.379181,173.58,173.53,13.43449703]
[1753999607194,13.43449703,173.57,173.51,14.14449703]
[1753999607514,2.309936,173.63,173.54,13.43449703]
[1753999607675,13.43449703,173.57,173.46,0.57650178]
[1753999607873,56.59449703,173.58,173.53,13.43449703]
[1753999608074,56.59449703,173.6,173.55,13.43449703]
[1753999608388,13.43449703,173.59,173.56,0.71]
[1753999608786,13.43449703,173.58,173.53,14.14449703]
[1753999609103,13.43449703,173.54,173.5,0.71]
[1753999609601,13.43449703,173.53,173.48,13.43449703]
[1753999609806,13.43449703,173.51,173.48,0.71]
[1753999609989,13.43449703,173.5,173.48,0.71]
[1753999610293,13.43449703,173.5,173.45,13.43449703]
[1753999610294,13.43449703,173.5,173.45,14.14449703]
[1753999610468,13.43449703,173.5,173.45,13.43449703]
[1753999610672,26.0,173.54,173.49,13.43449703]
[1753999610875,26.0,173.57,173.5,0.71]
[1753999611085,30.219181,173.56,173.51,13.43449703]
[1753999611293,13.43449703,173.55,173.5,14.14449703]
[1753999611495,69.16,173.58,173.54,13.43449703]
[1753999611694,13.43449703,173.63,173.57,13.43449703]
[1753999611891,26.0,173.6,173.58,13.43449703]
[1753999612091,43.16,173.63,173.59,14.14449703]
[1753999612299,43.16,173.63,173.6,14.14449703]
[1753999612677,43.16,173.63,173.6,0.71]
[1753999612997,43.16,173.63,173.59,13.43449703]
[1753999613173,56.59449703,173.63,173.59,0.71]
[1753999613372,56.59449703,173.63,173.58,13.43449703]
[1753999613591,56.59449703,173.63,173.58,14.14449703]
[1753999613797,56.59449703,173.63,173.59,0.71]
[1753999614188,43.16,173.63,173.61,13.43449703]
[1753999614388,16.78468397,173.65,173.61,14.14449703]
[1753999614574,16.78468397,173.65,173.61,13.43449703]
[1753999614774,56.59449703,173.66,173.62,0.71]
[1753999615186,43.16,173.66,173.62,14.14449703]
[1753999615587,13.43449703,173.71,173.65,13.43449703]
[1753999615803,6.44646328,173.72,173.65,13.43449703]
[1753999615804,59.94468397,173.7,173.67,13.43449703]
[1753999616516,13.43449703,173.68,173.62,0.71]
[1753999616687,13.43449703,173.66,173.62,14.14449703]
[1753999616884,13.43449703,173.67,173.62,14.14449703]
[1753999617114,13.43449703,173.64,173.59,14.14449703]
[1753999617311,13.43449703,173.64,173.6,0.71]
[1753999617494,13.43449703,173.64,173.61,0.71]
[1753999617701,13.43449703,173.65,173.61,0.71]
[1753999618695,13.43449703,173.65,173.6,13.43449703]
[1753999618896,13.43449703,173.65,173.61,0.71]
[1753999619397,48.89812703,173.67,173.56,13.43449703]
[1753999619398,13.43449703,173.62,173.56,13.43449703]
[1753999619587,13.43449703,173.61,173.56,13.43449703]
[1753999619793,56.57449703,173.64,173.59,13.43449703]
[1753999619988,43.14,173.64,173.6,14.14449703]
[1753999620295,13.43449703,173.65,173.6,13.43449703]
[1753999620478,13.43449703,173.65,173.6,14.14449703]
[1753999621110,14.12449703,173.64,173.59,13.43449703]
[1753999621294,43.14,173.67,173.6,14.14449703]
[1753999621295,39.43449703,173.65,173.6,14.14449703]
[1753999621602,39.43449703,173.65,173.61,0.71]
[1753999621807,26.0,173.63,173.59,13.43449703]
[1753999622399,13.43449703,173.6,173.54,0.71]
[1753999622590,13.43449703,173.6,173.55,13.43449703]
[1753999622793,13.43449703,173.6,173.56,0.71]
[1753999623186,173.6,173.63,173.57,0.71]
[1753999623390,173.6,173.63,173.53,26.0]
[1753999623391,13.43449703,173.6,173.54,0.71]
[1753999623588,13.43449703,173.59,173.54,14.14449703]
[1753999624114,13.43449703,173.59,173.55,0.71]
[1753999624519,13.43449703,173.57,173.52,14.15449703]
[1753999624684,13.43449703,173.54,173.49,14.15449703]
[1753999624880,13.43449703,173.55,173.5,14.15449703]
[1753999625107,13.43449703,173.55,173.51,0.72]
[1753999625280,13.43449703,173.54,173.51,0.72]
[1753999625482,43.12,173.58,173.52,0.72]
[1753999625684,13.43449703,173.56,173.52,0.72]
[1753999626100,43.12,173.58,173.54,13.43449703]
[1753999626309,59.90468397,173.62,173.56,13.43449703]
[1753999626488,13.43449703,173.61,173.56,13.43449703]
[1753999626689,13.43449703,173.61,173.56,14.15449703]
[1753999627514,13.43449703,173.57,173.5,13.43449703]
[1753999627808,26.0,173.58,173.54,0.06]
[1753999627809,26.0,173.55,173.54,0.06]
[1753999628014,56.219181,173.55,173.54,0.06]
[1753999628219,56.909181,173.55,173.54,0.06]
[1753999628406,39.43449703,173.55,173.54,0.06]
[1753999628607,26.0,173.55,173.54,0.06]
[1753999628810,39.43449703,173.55,173.54,0.06]
[1753999629012,56.55449703,173.58,173.54,0.78]
[1753999629813,13.43449703,173.56,173.54,0.06]
[1753999630221,49.57108758,173.58,173.54,0.06]
[1753999630222,74.029181,173.55,173.54,0.06]
[1753999630813,79.79120923,173.55,173.54,0.06]
[1753999631714,26.0,173.58,173.54,0.06]
[1753999632109,14.12449703,173.57,173.54,0.06]
[1753999632432,13.43449703,173.58,173.54,0.06]
[1753999632606,204.15449703,173.59,173.54,14.21449703]
[1753999632923,13.43449703,173.57,173.54,0.06]
[1753999633421,14.12449703,173.57,173.54,0.06]
[1753999633626,13.43449703,173.57,173.54,0.06]
[1753999634426,190.72,173.59,173.55,13.43449703]
[1753999634628,147.6,173.59,173.57,13.43449703]
[1753999634801,161.03449703,173.59,173.54,0.06]
[1753999635007,13.43449703,173.56,173.54,0.06]
[1753999635222,13.43449703,173.55,173.54,0.06]
[1753999635918,73.849181,173.55,173.54,0.06]
[1753999636120,77.63624965,173.55,173.54,0.06]
[1753999636432,73.339181,173.55,173.54,0.06]
[1753999637199,77.1302611,173.55,173.54,0.06]
[1753999637950,82.89228933,173.55,173.54,0.06]
[1753999638238,77.6402611,173.55,173.54,0.06]
[1753999638448,87.61466299,173.55,173.54,0.06]
[1753999638743,42.78468397,173.51,173.44,0.1]
[1753999638942,13.43449703,173.47,173.44,0.1]
[1753999639112,0.69,173.52,173.44,13.53449703]
[1753999639444,0.69,173.52,173.45,14.15449703]
[1753999639445,13.43449703,173.5,173.45,14.15449703]
[1753999639745,69.1,173.52,173.46,14.15449703]
[1753999639746,13.43449703,173.51,173.46,14.15449703]
[1753999639946,69.1,173.52,173.49,13.43449703]
[1753999640119,26.0,173.52,173.48,13.43449703]
[1753999640316,26.0,173.52,173.49,0.72]
[1753999640729,39.43449703,173.52,173.49,0.72]
[1753999640939,39.43449703,173.52,173.44,0.1]
[1753999640940,39.43449703,173.52,173.47,13.43449703]
[1753999641135,39.43449703,173.52,173.47,14.15449703]
[1753999641438,39.43449703,173.52,173.44,0.1]
[1753999641439,13.43449703,173.5,173.44,0.82]
[1753999641620,0.69,173.51,173.45,13.43449703]
[1753999641822,13.43449703,173.5,173.45,13.43449703]
[1753999642026,43.1,173.51,173.46,0.72]
[1753999642226,99.319181,173.53,173.46,0.72]
[1753999642440,13.43449703,173.5,173.46,0.72]
[1753999642646,13.43449703,173.47,173.44,0.1]
[1753999642845,8.79242376,173.46,173.44,0.1]
[1753999643444,34.79242376,173.47,173.44,0.1]
[1753999643962,26.0,173.47,173.44,0.1]
[1753999644162,26.0,173.49,173.46,8.79242376]
[1753999644461,26.0,173.49,173.47,0.72]
[1753999644860,8.79242376,173.49,173.44,9.61242376]
[1753999645155,8.79242376,173.47,173.44,0.1]
[1753999645358,8.79242376,173.45,173.44,0.1]
[1753999645577,8.79242376,173.47,173.44,0.1]
[1753999645785,34.79242376,173.47,173.44,0.1]
[1753999646081,26.0,173.47,173.44,0.82]
[1753999646461,34.79242376,173.47,173.44,0.1]
[1753999646659,26.0,173.47,173.45,9.51242376]
[1753999646879,26.0,173.47,173.44,0.1]